Cogmind - Beta 10 @@@ ROGUE MODE // 2020.09.20 @ 05:14:40 Player: DragoX Result: Destroyed by S-27 Virus with Autogun Performance ------------- Evolutions (3) 1500 Regions Visited (9) 1800 Robots Destroyed (75) 375 Value Destroyed (2707) 2707 Prototype IDs (3) 60 Alien Tech Used (0) 0 Bonus (1133) 1133 TOTAL SCORE: 7575 Bonus ------- High Alert Combat Kills 98 Follower Combat Kills 35 Entered Garrisons 200 Used RIF Installer 500 Aligned with FarCom 300 Cogmind --------- Core Integrity 0/700 Matter 10/300 Energy 290/290 System Corruption 3% Temperature Cool (0) Movement Core (300) Ox5 Location -7/Lower Caves Parts ------- > --- POWER (2) -------- Reinforced Deuterium Engine > --- PROPULSION (2) --- (None) > --- UTILITY (7) ------ Modified TNC Targeting Computer Improved Targeting Computer Core Analyzer Relay Coupler [Grunt] (16) > --- WEAPON (2) ------- High-powered Shotgun > --- INVENTORY (4) ---- Weapon Cycler High-powered Shotgun Peak State ------------ > --- POWER ------------ Micro Nuclear Core > --- PROPULSION ------- Armored Wheel Armored Wheel > --- UTILITY ---------- Humpback Modified TNC Weapon Cycler Cloak of Protection Hacking Suite Hacking Suite > --- WEAPON ----------- Heavy Battle Rifle Gauss Cannon > --- INVENTORY -------- Light Nuclear Core Armored Wheel Armored Wheel Sensor Array Armor Integrity Analyzer Energy Filter ECM Suite Core Shielding Core Shielding Improved Field Recycling Unit Heavy Ion Cannon Light Cannon Rocket Launcher Mini Grenade Launcher Datajack Mining Laser Power Maul Stasis Trap Stasis Trap Stasis Trap [Rating: 46] Favorites ----------- Power Light Nuclear Core Engine Reinforced Deuterium Engine Power Core Light Nuclear Core Propulsion Armored Wheel Treads Light Treads Leg Aluminum Leg Wheel Armored Wheel Utility Modified TNC Device Improved Heat Sink Storage Humpback Processor Modified TNC Hackware Hacking Suite Protection Core Shielding Weapon Gauss Cannon Energy Gun Particle Gun Energy Cannon Heavy Ion Cannon Ballistic Gun High-powered Shotgun Ballistic Cannon Gauss Cannon Launcher Mini Grenade Launcher Special Weapon Remote Datajack Build | -11 -10 -10 -10 -9 -8 -7 -7 -7 -7 ------- Run | Scr Mat Min Exi Min Mat Fac Gar Fac Low Slots Evolved 6 | . . . . . 4 2 . . . Power 1 | . . . . . . 1 . . . Propulsion . | . . . . . . . . . . Utility 5 | . . . . . 4 1 . . . Weapon . | . . . . . . . . . . Parts Attached 98 | 5 17 3 4 7 5 9 23 23 2 Power 18 | 1 3 1 . 1 . 2 5 5 . Engine 6 | 1 2 1 . . . . . 2 . Core 12 | . 1 . . 1 . 2 5 3 . Reactor . | . . . . . . . . . . Propulsion 15 | 2 3 . . . . 2 4 4 . Treads 1 | . . . . . . . . 1 . Leg 9 | 2 1 . . . . . 4 2 . Wheel 5 | . 2 . . . . 2 . 1 . Hover . | . . . . . . . . . . Flight . | . . . . . . . . . . Utility 29 | 1 4 . 4 . 4 3 6 7 . Device 16 | . 3 . 2 . 2 1 6 2 . Storage 4 | 1 1 . 2 . . . . . . Processor 5 | . . . . . 1 1 . 3 . Hackware 3 | . . . . . 1 1 . 1 . Protection 1 | . . . . . . . . 1 . Artifact . | . . . . . . . . . . Weapon 36 | 1 7 2 . 6 1 2 8 7 2 Energy Gun 8 | . 3 . . . . 2 3 . . Energy Cannon 3 | . . . . 2 . . 1 . . Ballistic Gun 9 | 1 2 . . . 1 . . 4 1 Ballistic Cannon 4 | . 1 . . 2 . . 1 . . Launcher 8 | . . 2 . 2 . . 3 1 . Special Weapon 4 | . 1 . . . . . . 2 1 Impact Weapon . | . . . . . . . . . . Slashing Weapon . | . . . . . . . . . . Piercing Weapon . | . . . . . . . . . . Special Melee Weapon . | . . . . . . . . . . Unidentified Prototypes 3 | . . . 2 . 1 . . . . Parts Lost 48 | . 3 2 . . . 4 29 6 4 Power 10 | . 1 1 . . . 1 6 . 1 Propulsion 11 | . . . . . . 2 6 2 1 Utility 15 | . 1 . . . . 1 10 2 1 Weapon 12 | . 1 1 . . . . 7 2 1 Highest Loss Streak 13 | . 2 1 . . . 3 13 3 4 Average Slot Usage (%) 81 | . 95 99 92 78 89 78 60 74 75 Engine 4 | . 7 7 14 . . . . 8 14 Core 6 | . 6 6 . 7 9 7 10 2 . Leg 6 | . 24 . . . . . 6 5 . Wheel 12 | . 2 28 28 28 18 11 2 1 . Device 8 | . 11 14 4 . 18 13 17 8 . Storage 8 | . 14 14 16 14 9 7 . . . Processor 6 | . . . . . 9 8 8 23 30 Hackware 2 | . . . . . 8 13 2 2 7 Energy Gun 2 | . 8 2 . . . 1 5 . . Energy Cannon 3 | . . . . 13 3 . . . . Ballistic Gun 5 | . 15 . . . 5 6 . 10 5 Ballistic Cannon 4 | . 1 3 . 13 9 6 1 . . Launcher 3 | . . 21 28 1 . . 3 1 . Naked Turns . | . . . . . . . . . . Heaviest Build 109 | 11 44 44 85 100 109 106 99 43 34 Greatest Support 25 | 20 24 24 24 24 24 24 25 20 20 Greatest Overweight (x) 13 | 3 13 1 3 4 4 8 5 3 1 Average Overweight (x) 1 | . . 1 1 3 4 5 . . 1 Largest Inventory Capacity 24 | 6 12 12 24 24 24 24 24 4 4 Average Capacity 13 | 5 10 12 15 24 24 24 6 4 4 Most Carried 21 | 5 12 11 12 20 21 21 18 4 3 Average Carried 10 | 2 8 9 10 18 18 19 4 3 2 Final Capacity 24 | 6 12 12 24 24 24 24 4 4 4 Final Carried 20 | 5 11 9 10 20 20 18 2 3 2 Class Distribution -------------------- 50% | Mutant 36% | Hauler-Mutant 13% | Scavenger-Mutant Dominant Class ---------------- Mutant | -10/Materials Mutant | -10/Mines Mutant | -10/Exiles Hauler-Mutant | -9/Mines Hauler-Mutant | -8/Materials Hauler-Mutant | -7/Factory Scavenger-Mutant | -7/Garrison Mutant | -7/Factory Mutant | -7/Lower Caves Resources | -11 -10 -10 -10 -9 -8 -7 -7 -7 -7 ----------- Run | Scr Mat Min Exi Min Mat Fac Gar Fac Low Matter Collected 2004 | 250 263 168 29 249 44 337 318 331 15 Remotely . | . . . . . . . . . . Salvage Created 1947 | . 313 51 . 121 44 323 608 444 43 Parts 124 | . 26 5 . 13 1 20 31 27 1 Haulers Intercepted 1 | . . . . . . . . 1 . Recyclers Shooed 2 | . . . . . . . . 2 . Parts Field Recycled . | . . . . . . . . . . Retrieved Matter . | . . . . . . . . . . Parts Self-Destructed 1 | . . . . . . . . . 1 Prevented . | . . . . . . . . . . Kills | -11 -10 -10 -10 -9 -8 -7 -7 -7 -7 ------- Run | Scr Mat Min Exi Min Mat Fac Gar Fac Low Combat Hostiles Destroyed 70 | . 12 5 . 8 1 7 26 9 2 Melee 1 | . . . . . . . 1 . . Guns 32 | . 12 2 . . 1 4 3 8 2 Cannons 13 | . . 2 . 8 . 3 . . . AOE 24 | . . 1 . . . . 22 1 . Classes Destroyed 11 | . 3 . . . 1 3 1 3 . Worker 1 | . . . . . . 1 . . . Hauler 1 | . . . . . . . . 1 . Recycler 1 | . . . . . . . . 1 . Watcher 2 | . 1 . . . . 1 . . . Swarmer 28 | . 8 4 . 5 . . 6 3 2 Grunt 34 | . 4 1 . 3 . 5 18 3 . Brawler 1 | . . . . . . . . 1 . Duelist 2 | . . . . . . . 1 1 . Sentry 2 | . . . . . . 1 1 . . Hunter 1 | . . . . . 1 . . . . Programmer 2 | . . . . . . 1 . 1 . Best Kill Streak 9 | . 3 2 . 3 1 6 9 3 2 Combat Bots Only 9 | . 3 2 . 3 1 5 9 3 2 Max Kills in Single Turn 3 | . 1 1 . 1 1 2 3 1 1 Gunslinging . | . . . . . . . . . . Exploded 3 | . . 1 . . . . 3 1 . Melee 1 | . . . . . . . 1 . . Uniques/NPCs Destroyed . | . . . . . . . . . . Combat | -11 -10 -10 -10 -9 -8 -7 -7 -7 -7 -------- Run | Scr Mat Min Exi Min Mat Fac Gar Fac Low Damage Taken 5113 | . 433 317 . 345 97 724 1776 1051 370 Core 863 | . 72 61 . 23 . 47 407 153 100 Absorbed by Shields . | . . . . . . . . . . Core Remaining (%) 79 | 100 . . . 37 100 . . . . Volleys Fired 214 | . 39 19 . 28 3 26 48 42 9 Largest 2 | . 2 2 . 1 2 2 2 2 1 Hottest 160 | . 120 100 . 48 81 81 160 50 30 Shots Fired 332 | . 74 32 . 28 6 52 66 65 9 Gun 191 | . 69 10 . . 3 26 29 46 8 Cannon 78 | . . 16 . 28 3 26 5 . . Launcher 53 | . . 6 . . . . 32 15 . Special 10 | . 5 . . . . . . 4 1 Kinetic 206 | . 47 16 . 28 6 52 3 46 8 Thermal 68 | . 27 10 . . . . 31 . . Explosive 38 | . . 6 . . . . 32 . . Electromagnetic 15 | . . . . . . . . 15 . Robot Hit Streak 14 | . 6 3 . 6 3 7 9 14 6 Robot Miss Streak 5 | . 4 2 . 4 2 4 4 5 5 Penetration Max 1 | . . . . . . 1 . . . Secondary Targets 3 | . 1 . . . . . . 2 . Max Gunslinging Chain 1 | . 1 . . . . . . 1 . Shots Hit Robots 191 | . 36 12 . 16 3 26 41 51 6 Core Hits 144 | . 18 6 . 8 2 15 58 34 3 Critical Hits 7 | . . . . 3 . 3 . 1 . Critical Kills 4 | . . . . 2 . 1 . 1 . Critical Parts Destroyed 3 | . . . . 1 . 2 . . . Melee Attacks . | . . . . . . . . . . Impact . | . . . . . . . . . . Slashing . | . . . . . . . . . . Piercing . | . . . . . . . . . . Sneak Attacks . | . . . . . . . . . . Combat Hostiles . | . . . . . . . . . . Follow-up Attacks . | . . . . . . . . . . Damage Inflicted 5321 | . 376 351 . 455 55 722 2580 709 73 Guns 1767 | . 376 71 . . 33 390 294 530 73 Cannons 946 | . . 91 . 455 22 332 46 . . Explosions 2598 | . . 189 . . . . 2230 179 . Melee . | . . . . . . . . . . Ramming 10 | . . . . . . . 10 . . Kinetic 2190 | . 244 91 . 455 55 722 20 530 73 Thermal 523 | . 132 71 . . . . 320 . . Explosive 2419 | . . 189 . . . . 2230 . . Electromagnetic 179 | . . . . . . . . 179 . Impact . | . . . . . . . . . . Slashing . | . . . . . . . . . . Piercing . | . . . . . . . . . . Highest Corruption 3 | . 1 1 1 1 . 2 2 3 3 Average Corruption 1 | . 1 1 1 1 . 1 2 2 3 Corruption Purged . | . . . . . . . . . . Effects 35 | . . 4 5 9 . 1 3 11 2 Message Errors 12 | . . 1 4 2 . . 1 4 . Matter Fused 3 | . . . . . . . . 3 . Heat Flow Errors 3 | . . . . . . 1 . 1 1 Energy Discharges 8 | . . 2 1 2 . . 1 1 1 Data Loss (minor) 5 | . . 1 . 4 . . . . . Targeting Errors 4 | . . . . 1 . . 1 2 . Overload Shots . | . . . . . . . . . . Overflow Damage 104 | . . 21 . 21 . . 62 . . Projectiles 37 | . . 15 . 21 . . 1 . . Explosions 67 | . . 6 . . . . 61 . . Melee . | . . . . . . . . . . Knockbacks 6 | . . 2 . 4 . . . . . Impact . | . . . . . . . . . . Kinetic 6 | . . 2 . 4 . . . . . Secondary . | . . . . . . . . . . Self-Inflicted Damage 346 | . . 30 . . . . 316 . . Shots 10 | . . 1 . . . . 9 . . Rammed 5 | . . . . . . . 5 . . Targets Rammed 5 | . . . . . . . 5 . . Kicked . | . . . . . . . . . . Crushed . | . . . . . . . . . . Highest Temperature 333 | . 78 270 . 108 27 333 137 228 141 Average Temperature 65 | . 20 119 . 43 13 72 79 72 72 Received Heat Transfer 1023 | . 69 27 . 99 18 252 396 162 . Effects 1 | . . . . . . 1 . . . Energy Bleed 1 | . . . . . . 1 . . . Siege Activations . | . . . . . . . . . . Robots Corrupted . | . . . . . . . . . . Combat Hostiles . | . . . . . . . . . . Parts Fried 1 | . . . . . . . . 1 . Impact Corruptions . | . . . . . . . . . . Robots Melted . | . . . . . . . . . . Combat Hostiles . | . . . . . . . . . . Parts Melted 2 | . . . . . . . 2 . . Heat Transferred 1214 | . 300 185 . . . . 729 . . Parts Sabotaged . | . . . . . . . . . . Parts Stolen . | . . . . . . . . . . Parts Stripped . | . . . . . . . . . . Power Chain Reactions 1 | . . . . . . . . 1 . Missiles Intercepted . | . . . . . . . . . . Alert | -11 -10 -10 -10 -9 -8 -7 -7 -7 -7 ------- Run | Scr Mat Min Exi Min Mat Fac Gar Fac Low Peak Influence 591 | . 170 160 . 85 94 229 591 401 . Initial 294 | . . 35 . . 15 42 20 294 . Average 137 | . 82 139 . 24 38 87 335 277 . Maximum Alert Level 2 | . . . . . . 1 2 2 . Low Security (%) 74 | 100 100 100 . 100 100 88 30 10 . Level 1 19 | . . . . . . 11 25 87 . Level 2 6 | . . . . . . . 44 2 . Level 3 . | . . . . . . . . . . Level 4 . | . . . . . . . . . . Level 5 . | . . . . . . . . . . High Security . | . . . . . . . . . . Max Security . | . . . . . . . . . . Squads Dispatched 9 | . . . . 1 . 5 . 3 . Investigation 2 | . . . . 1 . 1 . . . Extermination 2 | . . . . . . 1 . 1 . Reinforcement 2 | . . . . . . . . 2 . Assault . | . . . . . . . . . . Garrison 3 | . . . . . . 3 . . . Intercept . | . . . . . . . . . . Construction Impeded 1 | . . . . . . . . 1 . Haulers Reinforced . | . . . . . . . . . . Stealth | -11 -10 -10 -10 -9 -8 -7 -7 -7 -7 --------- Run | Scr Mat Min Exi Min Mat Fac Gar Fac Low Distress Signals 4 | . 4 . . . . . . . . Communications Jammed . | . . . . . . . . . . Distress Signals . | . . . . . . . . . . Times Spotted 110 | . 23 9 . 11 7 10 28 18 4 Peak Tracking Total 10 | . 4 3 . 3 3 5 10 3 4 Tactical Retreats 10 | . 1 2 . 3 1 . 1 2 . Traps | -11 -10 -10 -10 -9 -8 -7 -7 -7 -7 ------- Run | Scr Mat Min Exi Min Mat Fac Gar Fac Low Traps Triggered 8 | . 3 . . . . . 4 1 . Indirectly . | . . . . . . . . . . Trap Hack Attempts . | . . . . . . . . . . Triggered . | . . . . . . . . . . Disarmed . | . . . . . . . . . . Reprogrammed . | . . . . . . . . . . Reused . | . . . . . . . . . . Traps Extracted . | . . . . . . . . . . Installed . | . . . . . . . . . . Triggered . | . . . . . . . . . . Machines | -11 -10 -10 -10 -9 -8 -7 -7 -7 -7 ---------- Run | Scr Mat Min Exi Min Mat Fac Gar Fac Low Machines Disabled 3 | . . . . . 1 . 1 1 . Max in Single Turn 1 | . . . . . 1 . 1 1 . Garrison Relay 1 | . . . . . . . 1 . . Machines Sabotaged . | . . . . . . . . . . Garrisons Compromised . | . . . . . . . . . . Overloaded Fab Kills . | . . . . . . . . . . Fab Network Shutdowns . | . . . . . . . . . . Hacking | -11 -10 -10 -10 -9 -8 -7 -7 -7 -7 --------- Run | Scr Mat Min Exi Min Mat Fac Gar Fac Low Machines Accessed 6 | . 2 . . 1 1 2 . . . Terminals 2 | . 1 . . . 1 . . . . Fabricators . | . . . . . . . . . . Repair Stations . | . . . . . . . . . . Recycling Units 1 | . 1 . . . . . . . . Scanalyzers 1 | . . . . . . 1 . . . Garrison Access 1 | . . . . . . 1 . . . Total Hacks 10 | . 3 . . 1 1 5 . . . Successful 7 | . 2 . . 1 1 3 . . . Failed 3 | . 1 . . . . 2 . . . Catastrophic . | . . . . . . . . . . Database Lockouts . | . . . . . . . . . . Manual 5 | . 3 . 1 . 1 . . . . Terminals 3 | . 2 . . . 1 . . . . Fabricators . | . . . . . . . . . . Repair Stations . | . . . . . . . . . . Recycling Units 1 | . 1 . . . . . . . . Scanalyzers 3 | . . . . . . 3 . . . Garrison Access 2 | . . . . . . 2 . . . Terminal Hacks 1 | . . . . 1 . . . . . Open Door 1 | . . . . 1 . . . . . Fabricator Hacks . | . . . . . . . . . . Repair Station Hacks . | . . . . . . . . . . Recycling Unit Hacks . | . . . . . . . . . . Scanalyzer 2 | . . . . . . 2 . . . Insert Component 1 | . . . . . . 1 . . . Analyze 1 | . . . . . . 1 . . . Garrison Access Hacks 1 | . . . . . . 1 . . . Unlock Access 1 | . . . . . . 1 . . . Unauthorized Hacks 3 | . 2 . . . 1 . . . . Terminals 2 | . 1 . . . 1 . . . . Botnet 2 | . 1 . . . 1 . . . . Fabricators . | . . . . . . . . . . Repair Stations . | . . . . . . . . . . Recycling Units 1 | . 1 . . . . . . . . Monitor 1 | . 1 . . . . . . . . Scanalyzers . | . . . . . . . . . . Garrison Access . | . . . . . . . . . . Data Cores Recovered . | . . . . . . . . . . Used . | . . . . . . . . . . Hacking Detections 4 | . 2 . . . . 2 . . . Full Trace Events 1 | . . . . . . 1 . . . Feedback Events . | . . . . . . . . . . Feedback Blocked . | . . . . . . . . . . Robot Schematics Acquired . | . . . . . . . . . . Robots Built . | . . . . . . . . . . Matter . | . . . . . . . . . . Time . | . . . . . . . . . . Total Robot Build Rating . | . . . . . . . . . . Part Schematics Acquired 1 | . . . . . . 1 . . . Parts Built . | . . . . . . . . . . Matter . | . . . . . . . . . . Time . | . . . . . . . . . . Total Part Build Rating . | . . . . . . . . . . Parts Repaired . | . . . . . . . . . . Time . | . . . . . . . . . . Parts Recycled . | . . . . . . . . . . Recycled Matter . | . . . . . . . . . . Retrieved Matter . | . . . . . . . . . . Retrieved Components . | . . . . . . . . . . Parts Scanalyzed 1 | . . . . . . 1 . . . Part Schematics Acquired 1 | . . . . . . 1 . . . Parts Damaged . | . . . . . . . . . . Bothacking | -11 -10 -10 -10 -9 -8 -7 -7 -7 -7 ------------ Run | Scr Mat Min Exi Min Mat Fac Gar Fac Low Used RIF Installer 1 | . . . . . . . 1 . . Robots Hacked 3 | . . . . . . . . 2 1 Non-combat 1 | . . . . . . . . . 1 Combat 2 | . . . . . . . . 2 . Robot Hacks Applied 3 | . . . . . . . . 2 1 parse_system 1 | . . . . . . . . . 1 overwrite_iff 2 | . . . . . . . . 2 . Relay Couplers Released 4 | . . . . . . . 4 . . Machine Destruction 4 | . . . . . . . 4 . . Attached 1 | . . . . . . . . 1 . Robots Rewired . | . . . . . . . . . . Allies Hacked . | . . . . . . . . . . Hacks Repelled . | . . . . . . . . . . Allies | -11 -10 -10 -10 -9 -8 -7 -7 -7 -7 -------- Run | Scr Mat Min Exi Min Mat Fac Gar Fac Low Total Allies 2 | . . . . . . . . 2 . Largest Group 1 | . . . . . . . . 1 . Highest-Rated Group 16 | . . . . . . . . 16 . Highest-Rated Ally 16 | . . . . . . . . 16 . Total Orders . | . . . . . . . . . . Ally Attacks 6 | . . . . . . . . 6 . Total Damage 90 | . . . . . . . . 90 . Kills 1 | . . . . . . . . 1 . Allies Corrupted . | . . . . . . . . . . Allies Melted . | . . . . . . . . . . Intel | -11 -10 -10 -10 -9 -8 -7 -7 -7 -7 ------- Run | Scr Mat Min Exi Min Mat Fac Gar Fac Low Robot Analysis Total . | . . . . . . . . . . Derelict Logs Recovered 3 | . . 2 . 1 . . . . . Drone Launches . | . . . . . . . . . . Drone Recoveries . | . . . . . . . . . . Exploration | -11 -10 -10 -10 -9 -8 -7 -7 -7 -7 ------------- Run | Scr Mat Min Exi Min Mat Fac Gar Fac Low Turns Passed 6001 | 67 1143 388 344 1367 331 419 787 889 266 Spaces Moved 3488 | 47 563 315 313 775 146 226 530 451 122 Core 291 | 10 3 . . . . . 260 18 . Treads 297 | . . . . . . . . 175 122 Legs 830 | 37 464 . . . . . 205 124 . Wheels 2070 | . 96 315 313 775 146 226 65 134 . Hover . | . . . . . . . . . . Flight . | . . . . . . . . . . Fastest Speed 50 | 50 100 100 100 120 130 120 50 50 180 Average Speed 126 | 111 141 100 104 125 130 143 108 143 180 Slowest Speed 700 | 200 700 100 120 130 130 170 300 210 180 Overloaded Moves . | . . . . . . . . . . Propulsion Burnouts . | . . . . . . . . . . Robots Hopped . | . . . . . . . . . . Cave-ins Triggered . | . . . . . . . . . . Exploration Rate (%) 44 | 3 88 60 68 97 16 8 78 14 15 Regions Visited 9 Branch Regions 4 Pre-discovered Areas . | . . . . . . . . . . Known Exits Taken 2 | . . . . . 1 1 . . . Unknown Exits Taken 6 | 1 1 1 1 1 . . . 1 . Scrap Searched 3 | . . 1 . 2 . . . . . Spaces Dug 5 | . 5 . . . . . . . . Terrain Destroyed 172 | . 5 38 . 16 . 6 107 . . Melee . | . . . . . . . . . . Projectile 27 | . 5 . . 16 . 6 . . . AOE 145 | . . 38 . . . . 107 . . Terrain Rammed . | . . . . . . . . . . Walls Destroyed . | . . . . . . . . . . Machines Disabled . | . . . . . . . . . . Actions | -11 -10 -10 -10 -9 -8 -7 -7 -7 -7 --------- Run | Scr Mat Min Exi Min Mat Fac Gar Fac Low Total 4735 | 61 828 355 332 1143 281 270 675 631 159 Wait 784 | . 181 17 . 320 124 . 15 101 26 Move 3480 | 46 562 314 312 774 145 226 529 450 122 Hop . | . . . . . . . . . . Pick Up 87 | 10 18 1 11 12 4 6 18 7 . Fast Attach 23 | . 6 . 2 . . . 1 14 . Attach 57 | 5 6 2 2 1 4 9 21 6 1 Detach 2 | . . . . . . 1 . 1 . Swap 18 | . 5 1 . 6 1 . 1 3 1 Drop 32 | . 11 1 5 2 . 2 4 7 . Fire 214 | . 39 19 . 28 3 26 48 42 9 Melee . | . . . . . . . . . . Ram 5 | . . . . . . . 5 . . Kick . | . . . . . . . . . . Crush . | . . . . . . . . . . Escape Stasis 33 | . . . . . . . 33 . . Rewire . | . . . . . . . . . . Trap . | . . . . . . . . . . Miscellaneous . | . . . . . . . . . . Route ------- -11/Scrapyard -10/Materials (discovered 4 exits: [*Mat x3] / [*Min]) -10/Mines (discovered 2 exits: [*Mat] / *Exi) -10/Exiles -9/Mines (discovered 2 exits: *Mat x2) -8/Materials (discovered 3 exits: *Fac x3) -7/Factory -7/Garrison (discovered 3 exits: *Fac x3) -7/Factory -7/Lower Caves History --------- Turn | Location | Event 19 | -11/Scrapyard | Discovered new exit (range 15) 68 | -11/Scrapyard | Entered Materials 209 | -10/Materials | Discovered new exit (range 9) 304 | -10/Materials | Build established: Mutant 401 | -10/Materials | Discovered new exit (range 15) 729 | -10/Materials | Discovered new exit (range 16) 944 | -10/Materials | Discovered new exit (range 7) 1211 | -10/Materials | Entered Mines 1241 | -10/Mines | Assembled infested the area 1248 | -10/Mines | Met a Derelict bent on vengeance 1317 | -10/Mines | Learned 8 Materials zone layouts 1394 | -10/Mines | Core integrity fell below 50% 1423 | -10/Mines | Learned Materials stockpile data 1455 | -10/Mines | Discovered new exit (range 5) 1559 | -10/Mines | A weapon hastily lodged in a ceiling crevice suddenly fell to the ground 1595 | -10/Mines | Discovered new exit (range 5) 1599 | -10/Mines | Entered Exiles 1623 | -10/Exiles | Met 8R-AWN 1641 | -10/Exiles | Met EX-HEX 1668 | -10/Exiles | Met EX-BIN 1680 | -10/Exiles | Aligned with FarCom system 1681 | -10/Exiles | Given EX-Vault access code 1704 | -10/Exiles | Opened EX-Vault 1709 | -10/Exiles | Found Prototype Device 1710 | -10/Exiles | Identified Cloak of Protection 1716 | -10/Exiles | Found Prototype Device 1717 | -10/Exiles | Identified Skeleton Box 1729 | -10/Exiles | Found Prototype Processor 1753 | -10/Exiles | Warned to stay clear of 0b10 Research branches 1783 | -10/Exiles | Met EX-DEC 1932 | -10/Exiles | Discovered new exit (range 11) 1943 | -10/Exiles | Stole two prototypes: Cloak of Protection, Modified TNC 1943 | -10/Exiles | Entered Mines 1947 | -9/Mines | Met a Derelict shopkeep closing up shop 2123 | -9/Mines | Build established: Hauler-Mutant 2282 | -9/Mines | Discovered new exit (range 10) 2308 | -9/Mines | Discovered new exit (range 3) 2491 | -9/Mines | Received a Rocket Launcher from a helpful Derelict 2729 | -9/Mines | Learned location of 1 exit from Proximity Caves 2822 | -9/Mines | Found a hidden stash of uninstalled traps 3310 | -9/Mines | Entered Materials 3310 | -8/Materials | Evolved 4 slots: Utility x4 3311 | -8/Materials | Identified exit to Factory 3318 | -8/Materials | Identified Modified TNC 3621 | -8/Materials | Discovered exit to Factory (range 15) 3641 | -8/Materials | Entered Factory 3641 | -7/Factory | Evolved 2 slots: Power x1, Utility x1 3643 | -7/Factory | FarCom data flow suspended 4025 | -7/Factory | Lost 3 parts (1p1n1u) 4060 | -7/Factory | Identified exit to Garrison 4060 | -7/Factory | Entered Garrison 4146 | -7/Garrison | Triggered checkpoint 4220 | -7/Garrison | Destroyed 9 combat bots 4224 | -7/Garrison | Lost 13 parts (2p2n5u4w) 4291 | -7/Garrison | Triggered checkpoint 4397 | -7/Garrison | Discovered new exit (range 10) 4434 | -7/Garrison | Triggered checkpoint 4465 | -7/Garrison | Garrison Relay disabled 4558 | -7/Garrison | Triggered checkpoint 4564 | -7/Garrison | Triggered checkpoint 4612 | -7/Garrison | Core integrity fell below 50% 4624 | -7/Garrison | Lost 8 parts (2p2n3u1w) 4704 | -7/Garrison | Discovered new exit (range 14) 4724 | -7/Garrison | Triggered checkpoint 4771 | -7/Garrison | Lost 8 parts (2p2n2u2w) 4837 | -7/Garrison | Discovered new exit (range 10) 4844 | -7/Garrison | Installed Relay Interface Framework 4847 | -7/Garrison | Entered Factory 5039 | -7/Factory | Build established: Mutant 5658 | -7/Factory | Lost 3 parts (1n1u1w) 5709 | -7/Factory | Core integrity fell below 20% 5729 | -7/Factory | Discovered new exit (range 4) 5736 | -7/Factory | Entered Lower Caves 5897 | -7/Lower Caves | Spotted B-75 Beast 6002 | -7/Lower Caves | Destroyed by S-27 Virus with Autogun Last Messages --------------- 05714_ Hpw. Shotgun destroyed. 05717_ Acquired 23 matter. 05720_ R-06 Scavenger collects Wheel. 05723_ R-06 Scavenger collects Structural Scanner. 05729_ EXIT=FOUND LOCATION=UNKNOWN GOAL=ESCAPE 05784_ System corrupted: Energy discharge (-163). 05937_ System corrupted: Heat flow error (+154). 05946_ Jacked YX-EN0(r)... >>parse_system Reading system data... 05981_ KB-7N6(k) destroyed. 05985_ Acquired 15 matter. 05987_ Core Shielding destroyed. 05990_ Lgt. Treads destroyed. 05991_ Rnf. Deuterium Engine destroyed. 05992_ S-27 Virus destroyed. 05998_ VTOL Module fries itself beyond repair. 05998_ Remote Datajack destroyed. Map ----- +----------------------------------------------------+ | ?????????????????????????????????????????????????? | | ?????????????????????????????????????????????????? | | ?????????????????????????????????????????????????? | | ?????????????????????????????????????????????????? | | ?????????????????????????????????????????????????? | | ?????????????????????????????????????????????????? | | ?????????????????????????????????????????????????? | | ???????????????????????? #??????????????????????? | | ???????????????????????? ##?????????????????????? | | ???????????????????????# ????????????????????? | | ?????????????????????## ????????????????????? | | ###?????????????????? ????????????????????? | | # ##????????????????? ?????????????????????? | | # #????????????????? ??????????????????????? | | # ####????????????## ???????????????????????? | | # ##???######### #????#????????????????????? | | #??## ### #??#?????????????????? | | ##?# ? #?????????????????? | | ### ##????? #?????????????????? | | ### #????? ####??????????????? | | ## ##### ##????# #??????????????? | | ### ######### #?#### #??????????????? | | ??#### ###??# ### s ##?????????????? | | ?????## ##?# s #### ?????????? | | ?####?## #?# % % ????????? | | ## ##?# #?#####%@= % % ????????? | | # ### ##????# % #????????????? | | # ## ###????## ### %% #????????????? | | # # #?????## ##???? ## ##????????????? | | # ##????# ##???????????????????????? | | ## ##???## #????????????????????????? | | ## ### ##???# ####?????????????????????? | | ######?# ##### ##????????????????????? | | #??????## r #????????????????????? | | ##???????## #????????????????????? | | ##?????????#### ####????????????????????? | | ###?????????????##### ##???????????????????????? | | ????????????????????#####????????????????????????? | | ?????????????????????????????????????????????????? | | ?????????????????????????????????????????????????? | | ?????????????????????????????????????????????????? | | ?????????????????????????????????????????????????? | | ?????????????????????????????????????????????????? | | ?????????????????????????????????????????????????? | | ?????????????????????????????????????????????????? | | ?????????????????????????????????????????????????? | | ?????????????????????????????????????????????????? | | ?????????????????????????????????????????????????? | | ?????????????????????????????????????????????????? | | ?????????????????????????????????????????????????? | +----------------------------------------------------+ Best States ------------- Heat Dissipation 90 Energy Generation 27 Energy Capacity 480 Matter Stores 300 Matter Capacity 300 Sight Range 16 Robot Scan Range 10 Terrain Scan Density 10 ECM Strength 1 Cloak Strength 5 Core Shielding 20 Weapon Cycling 15 Evasion (%) 50 Targeting Accuracy 11 Core Analysis 6 Armor Integrity Analysis 33 Recoil Reduction 3 Offensive Hacking 20 Relay Coupler Types 30 Relay Coupler Value 1 Item Schematics ----------------- Armor Integrity Analyzer | -7/Factory | Scanalyzed Robot Schematics ------------------ None Fabricated ------------ Nothing Alien Tech Used ----------------- None Achievements -------------- Please Form A Line Challenges ------------ None Game ------ Seed ReclamationSmallBarrier Manual? 0 Play Time 01:10:39 Cumulative 7.0 hours Start 2020.09.20 @ 03:52:03 End 2020.09.20 @ 05:14:40 Sessions 1 Manual Loads 0 Difficulty Rogue Special Mode None Game No. 10 Rogue 10 Adventurer 0 Explorer 0 Win Type - Total 0 Types 0/0/0/0/0/0/0/0/0 Lore% 10 Gallery% 9 Achievement% 12 Wizard Run 0 Options --------- ASCII 0 Keyboard 0 Movement Mouse Keybinds 0 Fullscreen 1 Font 18/Cog Map View 76x50 Tactical HUD 1 Map Filters NONE Filters NONE Steam 0 RUN: c9d8815f-0af3-4923-98a0-065c1b410589